[Event "2026 European Womens Championship"]
[Site "Batumi, GE"]
[Date "2026.06.03"]
[Round "9"]
[White "Peycheva, Gergana"]
[Black "Mammadzada, Gunay"]
[Result "1-0"]
[Board "38"]
[TimeControl "5400+30"]
[WhiteFideId "2916711"]
[BlackFideId "13403729"]
[WhiteElo "2186"]
[BlackElo "2374"]
[WhiteTitle "FM"]
[BlackTitle "IM"]
[WhiteClock "0:03:59"]
[BlackClock "0:10:16"]
[Variant "Standard"]

1. d4 {[%clk 1:30:57]}  Nf6 {[%clk 1:30:46]} 2. Nf3 {[%clk 1:31:17]}  e6 {[%clk 1:30:50]} 3. e3 {[%clk 1:31:09]}  c5 {[%clk 1:29:14]}
4. Bd3 {[%clk 1:30:29]}  b6 {[%clk 1:23:11]} 5. O-O {[%clk 1:29:41]}  Bb7 {[%clk 1:23:34]} 6. c4 {[%clk 1:29:43]}  g6 {[%clk 1:15:19]}
7. d5 {[%clk 1:25:55]}  Bg7 {[%clk 1:05:12]} 8. e4 {[%clk 1:24:19]}  d6 {[%clk 1:04:19]} 9. Nc3 {[%clk 1:21:45]}  O-O {[%clk 0:59:49]}
10. Re1 {[%clk 1:20:53]}  exd5 {[%clk 0:58:49]} 11. exd5 {[%clk 1:17:23]}  a6 {[%clk 0:58:14]} 12. Bf4 {[%clk 1:11:23]}  Bc8 {[%clk 0:52:22]}
13. h3 {[%clk 1:11:09]}  h6 {[%clk 0:45:32]} 14. Qd2 {[%clk 1:07:12]}  Kh7 {[%clk 0:44:19]} 15. Bh2 {[%clk 1:03:19]}  Ra7 {[%clk 0:39:29]}
16. Rab1 {[%clk 0:58:50]}  Re8 {[%clk 0:30:51]} 17. Qf4 {[%clk 0:53:45]}  Rxe1+ {[%clk 0:28:50]} 18. Rxe1 {[%clk 0:53:28]}  Ne8 {[%clk 0:20:35]}
19. h4 {[%clk 0:48:27]}  Re7 {[%clk 0:18:27]} 20. Rxe7 {[%clk 0:38:52]}  Qxe7 {[%clk 0:18:55]} 21. h5 {[%clk 0:38:22]}  Nd7 {[%clk 0:17:00]}
22. Qg4 {[%clk 0:19:07]}  Ne5 {[%clk 0:12:39]} 23. hxg6+ {[%clk 0:17:54]}  fxg6 {[%clk 0:11:21]} 24. Bxg6+ {[%clk 0:17:19]}  Nxg6 {[%clk 0:11:44]}
25. Qxc8 {[%clk 0:17:42]}  Bxc3 {[%clk 0:07:52]} 26. bxc3 {[%clk 0:18:02]}  Qe4 {[%clk 0:08:07]} 27. Qb7+ {[%clk 0:12:53]}  Kg8 {[%clk 0:07:10]}
28. Qxb6 {[%clk 0:12:53]}  Qxc4 {[%clk 0:07:27]} 29. Qd8 {[%clk 0:11:29]}  Qe4 {[%clk 0:05:23]} 30. Bxd6 {[%clk 0:11:23]}  Kf7 {[%clk 0:03:59]}
31. Ne5+ {[%clk 0:10:16]} 1-0

[Event "2026 European Womens Championship"]
[Site "Batumi, GE"]
[Date "2026.06.03"]
[Round "9"]
[White "Sivanandan, Bodhana"]
[Black "Khurtsilava, Inga"]
[Result "1/2-1/2"]
[Board "39"]
[TimeControl "5400+30"]
[WhiteFideId "497592"]
[BlackFideId "13600419"]
[WhiteElo "2374"]
[BlackElo "2175"]
[WhiteTitle "FM"]
[BlackTitle "WGM"]
[WhiteClock "0:06:13"]
[BlackClock "0:04:19"]
[Variant "Standard"]

1. e4 {[%clk 1:28:41]}  c6 {[%clk 1:30:57]} 2. d4 {[%clk 1:28:37]}  d5 {[%clk 1:31:23]} 3. Nd2 {[%clk 1:28:47]}  dxe4 {[%clk 1:31:49]}
4. Nxe4 {[%clk 1:29:02]}  Nf6 {[%clk 1:32:15]} 5. Nxf6+ {[%clk 1:28:58]}  exf6 {[%clk 1:32:42]} 6. c3 {[%clk 1:29:03]}  Bd6 {[%clk 1:33:07]}
7. Bd3 {[%clk 1:29:05]}  O-O {[%clk 1:33:27]} 8. Ne2 {[%clk 1:28:40]}  Re8 {[%clk 1:33:46]} 9. O-O {[%clk 1:28:49]}  Nd7 {[%clk 1:34:14]}
10. Ng3 {[%clk 1:28:45]}  g6 {[%clk 1:32:08]} 11. Bh6 {[%clk 1:28:44]}  Bf8 {[%clk 1:32:09]} 12. Qd2 {[%clk 1:28:35]}  Bg7 {[%clk 1:29:33]}
13. Rfe1 {[%clk 1:24:35]}  Nf8 {[%clk 1:26:54]} 14. a4 {[%clk 1:12:10]}  Be6 {[%clk 1:24:12]} 15. a5 {[%clk 1:11:24]}  f5 {[%clk 1:24:06]}
16. b4 {[%clk 1:05:42]}  b6 {[%clk 1:20:42]} 17. Bxg7 {[%clk 0:54:04]}  Kxg7 {[%clk 1:20:24]} 18. Qf4 {[%clk 0:54:19]}  b5 {[%clk 1:12:13]}
19. Re3 {[%clk 0:49:33]}  Bd7 {[%clk 1:04:19]} 20. Rxe8 {[%clk 0:43:02]}  Qxe8 {[%clk 1:02:40]} 21. Kf1 {[%clk 0:42:41]}  Ne6 {[%clk 1:00:14]}
22. Qd2 {[%clk 0:38:46]}  Qd8 {[%clk 0:59:02]} 23. Kg1 {[%clk 0:35:19]}  Qg5 {[%clk 0:55:55]} 24. Qxg5 {[%clk 0:30:08]}  Nxg5 {[%clk 0:55:01]}
25. Nf1 {[%clk 0:30:05]}  h5 {[%clk 0:49:07]} 26. Nd2 {[%clk 0:28:34]}  h4 {[%clk 0:48:27]} 27. f4 {[%clk 0:22:12]}  Ne6 {[%clk 0:48:20]}
28. g3 {[%clk 0:21:47]}  Nc7 {[%clk 0:44:02]} 29. Re1 {[%clk 0:21:12]}  Nd5 {[%clk 0:42:46]} 30. Nb1 {[%clk 0:20:56]}  Kf6 {[%clk 0:41:20]}
31. Be2 {[%clk 0:15:40]}  Be6 {[%clk 0:41:16]} 32. Kf2 {[%clk 0:15:14]}  Rh8 {[%clk 0:39:38]} 33. Kg2 {[%clk 0:11:57]}  hxg3 {[%clk 0:35:45]}
34. hxg3 {[%clk 0:10:22]}  Ne3+ {[%clk 0:29:28]} 35. Kg1 {[%clk 0:07:21]}  Bd5 {[%clk 0:28:57]} 36. Bf3 {[%clk 0:06:53]}  Bxf3 {[%clk 0:08:57]}
37. Rxe3 {[%clk 0:07:14]}  Bd5 {[%clk 0:07:10]} 38. Nd2 {[%clk 0:06:21]}  Rh1+ {[%clk 0:05:20]} 39. Kf2 {[%clk 0:06:43]}  Rh2+ {[%clk 0:05:24]}
40. Ke1 {[%clk 0:07:01]}  Rh1+ {[%clk 0:02:12]} 41. Ke2 {[%clk 0:06:14]}  Rh2+ {[%clk 0:02:25]} 42. Kd3 {[%clk 0:05:08]}  Rg2 {[%clk 0:01:14]}
43. c4 {[%clk 0:24:11]}  bxc4+ {[%clk 0:27:13]} 44. Nxc4 {[%clk 0:24:28]}  g5 {[%clk 0:26:32]} 45. Nd6 {[%clk 0:14:10]}  Rb2 {[%clk 0:20:58]}
46. b5 {[%clk 0:10:18]}  cxb5 {[%clk 0:11:57]} 47. fxg5+ {[%clk 0:09:08]}  Kxg5 {[%clk 0:11:48]} 48. Re5 {[%clk 0:09:23]}  Bc4+ {[%clk 0:10:50]}
49. Nxc4 {[%clk 0:08:54]}  Rb3+ {[%clk 0:11:16]} 50. Ke2 {[%clk 0:06:40]}  bxc4 {[%clk 0:11:44]} 51. Re7 {[%clk 0:05:59]}  Rxg3 {[%clk 0:10:23]}
52. Rxa7 {[%clk 0:05:35]}  Ra3 {[%clk 0:06:16]} 53. Rxf7 {[%clk 0:03:24]}  Kf4 {[%clk 0:05:52]} 54. Rc7 {[%clk 0:02:34]}  Ra2+ {[%clk 0:05:51]}
55. Kd1 {[%clk 0:02:50]}  Ra4 {[%clk 0:04:03]} 56. Kd2 {[%clk 0:02:59]}  Rxa5 {[%clk 0:01:25]} 57. Rxc4 {[%clk 0:03:20]}  Ke4 {[%clk 0:01:43]}
58. d5+ {[%clk 0:02:47]}  Kxd5 {[%clk 0:01:59]} 59. Rb4 {[%clk 0:03:11]}  Ke5 {[%clk 0:01:14]} 60. Ke3 {[%clk 0:03:33]}  f4+ {[%clk 0:01:38]}
61. Kf2 {[%clk 0:03:48]}  Ra2+ {[%clk 0:02:04]} 62. Kf3 {[%clk 0:03:53]}  Ra3+ {[%clk 0:02:30]} 63. Kf2 {[%clk 0:04:00]}  Kf5 {[%clk 0:02:16]}
64. Rb8 {[%clk 0:04:23]}  Ra5 {[%clk 0:02:41]} 65. Rf8+ {[%clk 0:04:45]}  Ke4 {[%clk 0:03:09]} 66. Re8+ {[%clk 0:05:05]}  Re5 {[%clk 0:03:26]}
67. Rxe5+ {[%clk 0:05:30]}  Kxe5 {[%clk 0:03:53]} 68. Kf3 {[%clk 0:05:50]}  Kf5 {[%clk 0:04:19]} 69. Kf2 {[%clk 0:06:13]} 1/2-1/2

[Event "2026 European Womens Championship"]
[Site "Batumi, GE"]
[Date "2026.06.03"]
[Round "9"]
[White "Brunello, Marina"]
[Black "Odisharia, Teona"]
[Result "0-1"]
[Board "40"]
[TimeControl "5400+30"]
[WhiteFideId "822590"]
[BlackFideId "13602322"]
[WhiteElo "2346"]
[BlackElo "2167"]
[WhiteTitle "IM"]
[BlackTitle "WFM"]
[WhiteClock "0:55:51"]
[BlackClock "0:10:18"]
[Variant "Standard"]

1. e4 {[%clk 1:30:57]}  c5 {[%clk 1:28:13]} 2. Nf3 {[%clk 1:31:18]}  d6 {[%clk 1:27:42]} 3. d4 {[%clk 1:31:43]}  cxd4 {[%clk 1:28:08]}
4. Nxd4 {[%clk 1:32:10]}  Nf6 {[%clk 1:28:34]} 5. Nc3 {[%clk 1:32:37]}  g6 {[%clk 1:28:52]} 6. Be3 {[%clk 1:32:57]}  Bg7 {[%clk 1:29:16]}
7. f3 {[%clk 1:33:23]}  Nc6 {[%clk 1:29:41]} 8. Qd2 {[%clk 1:33:49]}  O-O {[%clk 1:30:06]} 9. O-O-O {[%clk 1:34:16]}  d5 {[%clk 1:30:15]}
10. exd5 {[%clk 1:33:42]}  Nxd5 {[%clk 1:30:34]} 11. Nxc6 {[%clk 1:34:06]}  bxc6 {[%clk 1:31:01]} 12. Bd4 {[%clk 1:34:28]}  e5 {[%clk 1:30:04]}
13. Bc5 {[%clk 1:34:32]}  Re8 {[%clk 1:30:28]} 14. Ne4 {[%clk 1:34:37]}  Qc7 {[%clk 1:30:31]} 15. h4 {[%clk 1:33:07]}  f5 {[%clk 1:25:58]}
16. Nd6 {[%clk 1:32:35]}  Rd8 {[%clk 1:26:05]} 17. Nxc8 {[%clk 1:32:56]}  Raxc8 {[%clk 1:26:30]} 18. h5 {[%clk 1:32:04]}  Nb6 {[%clk 1:26:24]}
19. Bxb6 {[%clk 1:32:24]}  Rxd2 {[%clk 1:23:06]} 20. Bc4+ {[%clk 1:32:50]}  Kf8 {[%clk 1:23:30]} 21. Bxc7 {[%clk 1:33:13]}  Rxd1+ {[%clk 1:23:42]}
22. Rxd1 {[%clk 1:33:38]}  Rxc7 {[%clk 1:23:35]} 23. hxg6 {[%clk 1:34:04]}  hxg6 {[%clk 1:22:55]} 24. Rd6 {[%clk 1:33:57]}  Bh6+ {[%clk 1:22:13]}
25. Kd1 {[%clk 1:32:06]}  Kg7 {[%clk 1:21:57]} 26. b4 {[%clk 1:32:22]}  Bf4 {[%clk 1:08:19]} 27. Rd8 {[%clk 1:26:50]}  Bg5 {[%clk 0:58:46]}
28. Rg8+ {[%clk 1:21:45]}  Kf6 {[%clk 0:58:30]} 29. Ke2 {[%clk 1:21:56]}  Bf4 {[%clk 0:33:56]} 30. Re8 {[%clk 1:19:26]}  c5 {[%clk 0:32:04]}
31. Re6+ {[%clk 1:13:08]}  Kg7 {[%clk 0:19:34]} 32. bxc5 {[%clk 1:04:30]}  Rxc5 {[%clk 0:19:55]} 33. Kd3 {[%clk 1:04:55]}  a5 {[%clk 0:20:02]}
34. a4 {[%clk 1:04:11]}  Bg3 {[%clk 0:18:55]} 35. Kc3 {[%clk 1:00:12]}  Bh4 {[%clk 0:12:05]} 36. Kb3 {[%clk 0:59:44]}  Bd8 {[%clk 0:11:23]}
37. Rd6 {[%clk 0:51:22]}  Be7 {[%clk 0:04:07]} 38. Rd7 {[%clk 0:45:50]}  Kf6 {[%clk 0:03:54]} 39. Bd5 {[%clk 0:46:16]}  Rc8 {[%clk 0:03:55]}
40. Rb7 {[%clk 0:42:18]}  Bb4 {[%clk 0:03:21]} 41. c4 {[%clk 0:41:17]}  Bd6 {[%clk 0:20:13]} 42. Ra7 {[%clk 1:07:13]}  Bb4 {[%clk 0:19:12]}
43. Ra6+ {[%clk 1:07:30]}  Kg5 {[%clk 0:17:50]} 44. Re6 {[%clk 1:05:35]}  Rb8 {[%clk 0:14:45]} 45. Kc2 {[%clk 1:04:15]}  Rh8 {[%clk 0:15:00]}
46. Rxe5 {[%clk 1:01:48]}  Rh2 {[%clk 0:13:45]} 47. Re2 {[%clk 1:02:05]}  Kf4 {[%clk 0:12:54]} 48. Kd3 {[%clk 1:02:04]}  Rh1 {[%clk 0:02:18]}
49. Bf7 {[%clk 0:52:26]}  g5 {[%clk 0:12:45]} 50. Be6 {[%clk 0:52:52]}  Ra1 {[%clk 0:12:23]} 51. Rc2 {[%clk 0:51:22]}  Rd1+ {[%clk 0:12:35]}
52. Ke2 {[%clk 0:49:15]}  Re1+ {[%clk 0:12:42]} 53. Kd3 {[%clk 0:49:42]}  Rxe6 {[%clk 0:12:36]} 54. c5 {[%clk 0:50:10]}  Rc6 {[%clk 0:08:11]}
55. Kd4 {[%clk 0:50:36]}  g4 {[%clk 0:08:28]} 56. fxg4 {[%clk 0:50:49]}  fxg4 {[%clk 0:08:53]} 57. Kd5 {[%clk 0:51:16]}  Rxc5+ {[%clk 0:08:26]}
58. Rxc5 {[%clk 0:51:40]}  Bxc5 {[%clk 0:08:53]} 59. Kxc5 {[%clk 0:52:06]}  Kg3 {[%clk 0:09:18]} 60. Kb5 {[%clk 0:52:01]}  Kxg2 {[%clk 0:09:40]}
61. Kxa5 {[%clk 0:52:30]}  Kf1 {[%clk 0:09:35]} 62. Kb6 {[%clk 0:52:52]}  g3 {[%clk 0:09:38]} 63. a5 {[%clk 0:53:19]}  g2 {[%clk 0:10:05]}
64. a6 {[%clk 0:53:48]}  g1=Q+ {[%clk 0:10:29]} 65. Kb7 {[%clk 0:54:17]}  Qg2+ {[%clk 0:10:17]} 66. Kb8 {[%clk 0:54:43]}  Qg8+ {[%clk 0:09:20]}
67. Kb7 {[%clk 0:55:07]}  Qd5+ {[%clk 0:09:36]} 68. Kb8 {[%clk 0:55:25]}  Qb5+ {[%clk 0:09:54]} 69. Ka7 {[%clk 0:55:51]}  Ke2 {[%clk 0:10:18]} 0-1

[Event "2026 European Womens Championship"]
[Site "Batumi, GE"]
[Date "2026.06.03"]
[Round "9"]
[White "Khukhashvili, Sopiko"]
[Black "Mamedjarova, Zeinab"]
[Result "1-0"]
[Board "41"]
[TimeControl "5400+30"]
[WhiteFideId "13602055"]
[BlackFideId "13401521"]
[WhiteElo "2329"]
[BlackElo "2137"]
[WhiteTitle "IM"]
[BlackTitle "WGM"]
[WhiteClock "0:44:09"]
[BlackClock "0:24:31"]
[Variant "Standard"]

1. e4 {[%clk 1:30:53]}  d5 {[%clk 1:30:21]} 2. exd5 {[%clk 1:31:19]}  Qxd5 {[%clk 1:30:46]} 3. Nc3 {[%clk 1:31:45]}  Qa5 {[%clk 1:28:50]}
4. d4 {[%clk 1:31:08]}  Nf6 {[%clk 1:29:04]} 5. Nf3 {[%clk 1:31:29]}  Bg4 {[%clk 1:27:32]} 6. h3 {[%clk 1:30:39]}  Bh5 {[%clk 1:26:04]}
7. Bd2 {[%clk 1:29:51]}  c6 {[%clk 1:25:35]} 8. g4 {[%clk 1:29:21]}  Bg6 {[%clk 1:26:00]} 9. Ne5 {[%clk 1:29:28]}  Qb6 {[%clk 1:22:56]}
10. Qe2 {[%clk 1:22:56]}  e6 {[%clk 1:11:58]} 11. f4 {[%clk 1:21:29]}  Be7 {[%clk 1:10:26]} 12. O-O-O {[%clk 1:21:41]}  Nbd7 {[%clk 1:07:28]}
13. h4 {[%clk 1:15:48]}  Qxd4 {[%clk 0:40:15]} 14. Be3 {[%clk 1:08:25]}  Qb4 {[%clk 0:40:09]} 15. Nxd7 {[%clk 1:08:41]}  Nxd7 {[%clk 0:39:48]}
16. h5 {[%clk 1:07:56]}  Be4 {[%clk 0:39:48]} 17. a3 {[%clk 1:07:24]}  Qxc3 {[%clk 0:39:40]} 18. bxc3 {[%clk 1:07:51]}  Bxh1 {[%clk 0:38:11]}
19. Bh3 {[%clk 1:07:08]}  Be4 {[%clk 0:37:36]} 20. Bd4 {[%clk 1:02:38]}  f5 {[%clk 0:35:21]} 21. gxf5 {[%clk 1:02:19]}  exf5 {[%clk 0:35:30]}
22. Bxg7 {[%clk 0:55:47]}  Rg8 {[%clk 0:35:52]} 23. h6 {[%clk 0:52:58]}  O-O-O {[%clk 0:34:18]} 24. a4 {[%clk 0:49:38]}  a5 {[%clk 0:24:31]}
25. Qh5 {[%clk 0:44:09]} 1-0

[Event "2026 European Womens Championship"]
[Site "Batumi, GE"]
[Date "2026.06.03"]
[Round "9"]
[White "Starosta, Martyna"]
[Black "Mammadova, Gulnar"]
[Result "0-1"]
[Board "42"]
[TimeControl "5400+30"]
[WhiteFideId "21818754"]
[BlackFideId "13403508"]
[WhiteElo "2175"]
[BlackElo "2325"]
[WhiteTitle "WIM"]
[BlackTitle "IM"]
[WhiteClock "0:01:04"]
[BlackClock "0:17:47"]
[Variant "Standard"]

1. e4 {[%clk 1:30:57]}  e5 {[%clk 1:30:51]} 2. Nf3 {[%clk 1:31:21]}  Nc6 {[%clk 1:31:14]} 3. Bb5 {[%clk 1:31:43]}  a6 {[%clk 1:31:35]}
4. Ba4 {[%clk 1:32:09]}  Nf6 {[%clk 1:31:51]} 5. O-O {[%clk 1:31:30]}  Be7 {[%clk 1:32:07]} 6. Bxc6 {[%clk 1:31:24]}  dxc6 {[%clk 1:32:16]}
7. d3 {[%clk 1:31:13]}  Nd7 {[%clk 1:31:25]} 8. Be3 {[%clk 1:29:03]}  O-O {[%clk 1:30:53]} 9. Nc3 {[%clk 1:28:28]}  Re8 {[%clk 1:30:35]}
10. Ne2 {[%clk 1:25:07]}  Bd6 {[%clk 1:27:49]} 11. Ng3 {[%clk 1:22:47]}  Nf8 {[%clk 1:28:02]} 12. Nd2 {[%clk 1:21:51]}  b5 {[%clk 1:25:36]}
13. Kh1 {[%clk 1:17:11]}  Ng6 {[%clk 1:24:54]} 14. Nf5 {[%clk 1:14:12]}  Be6 {[%clk 1:18:28]} 15. Qf3 {[%clk 1:04:35]}  Bf8 {[%clk 1:11:29]}
16. g4 {[%clk 0:56:53]}  c5 {[%clk 1:09:38]} 17. Rad1 {[%clk 0:49:30]}  a5 {[%clk 1:09:15]} 18. Rg1 {[%clk 0:45:34]}  a4 {[%clk 1:07:23]}
19. g5 {[%clk 0:41:15]}  Qd7 {[%clk 1:03:35]} 20. Rg3 {[%clk 0:35:18]}  Ne7 {[%clk 0:58:22]} 21. Nh6+ {[%clk 0:25:42]}  gxh6 {[%clk 0:57:15]}
22. gxh6+ {[%clk 0:25:55]}  Ng6 {[%clk 0:57:38]} 23. h4 {[%clk 0:26:04]}  Bxa2 {[%clk 0:53:43]} 24. h5 {[%clk 0:25:23]}  b4 {[%clk 0:46:26]}
25. Rdg1 {[%clk 0:24:11]}  Ra6 {[%clk 0:44:18]} 26. Bg5 {[%clk 0:17:11]}  Be7 {[%clk 0:40:29]} 27. b3 {[%clk 0:13:47]}  axb3 {[%clk 0:38:30]}
28. cxb3 {[%clk 0:13:35]}  Bxg5 {[%clk 0:32:01]} 29. Rxg5 {[%clk 0:13:50]}  Kh8 {[%clk 0:29:13]} 30. Nc4 {[%clk 0:07:28]}  Bxb3 {[%clk 0:22:07]}
31. hxg6 {[%clk 0:05:31]}  Bxc4 {[%clk 0:21:18]} 32. dxc4 {[%clk 0:02:20]}  hxg6 {[%clk 0:21:32]} 33. Rd1 {[%clk 0:01:51]}  Qe7 {[%clk 0:21:19]}
34. Rg3 {[%clk 0:01:04]}  Rf6 {[%clk 0:19:12]} 35. Qe3 {[%clk 0:01:07]}  Rd6 {[%clk 0:18:14]} 36. Rdg1 {[%clk 0:00:53]}  Rd4 {[%clk 0:19:21]}
37. Rh3 {[%clk 0:01:02]}  Rxc4 {[%clk 0:17:40]} 38. Qb3 {[%clk 0:01:04]}  Rxe4 {[%clk 0:17:47]} 0-1

[Event "2026 European Womens Championship"]
[Site "Batumi, GE"]
[Date "2026.06.03"]
[Round "9"]
[White "Dwilewicz, Katarzyna"]
[Black "Arakhamia-Grant, Ketevan"]
[Result "1-0"]
[Board "43"]
[TimeControl "5400+30"]
[WhiteFideId "1148486"]
[BlackFideId "13600168"]
[WhiteElo "2131"]
[BlackElo "2306"]
[WhiteTitle "WIM"]
[BlackTitle "GM"]
[WhiteClock "0:01:04"]
[BlackClock "0:01:41"]
[Variant "Standard"]

1. e4 {[%clk 1:30:55]}  c5 {[%clk 1:30:53]} 2. Nf3 {[%clk 1:31:11]}  Nc6 {[%clk 1:31:17]} 3. d4 {[%clk 1:31:30]}  cxd4 {[%clk 1:31:42]}
4. Nxd4 {[%clk 1:31:55]}  e5 {[%clk 1:32:07]} 5. Nb5 {[%clk 1:32:15]}  d6 {[%clk 1:32:32]} 6. N1c3 {[%clk 1:32:35]}  a6 {[%clk 1:32:43]}
7. Na3 {[%clk 1:32:56]}  Be6 {[%clk 1:32:18]} 8. Nc4 {[%clk 1:32:42]}  Rb8 {[%clk 1:31:55]} 9. Ne3 {[%clk 1:30:27]}  Nf6 {[%clk 1:31:14]}
10. Bd3 {[%clk 1:28:51]}  g6 {[%clk 1:26:49]} 11. O-O {[%clk 1:28:20]}  Bg7 {[%clk 1:25:04]} 12. Ncd5 {[%clk 1:26:25]}  O-O {[%clk 1:21:59]}
13. c3 {[%clk 1:23:50]}  Bxd5 {[%clk 1:14:29]} 14. exd5 {[%clk 1:15:48]}  Ne7 {[%clk 1:14:48]} 15. Be2 {[%clk 1:14:56]}  Nd7 {[%clk 1:10:20]}
16. a4 {[%clk 1:13:10]}  f5 {[%clk 1:00:05]} 17. b3 {[%clk 0:49:02]}  e4 {[%clk 0:53:47]} 18. Ba3 {[%clk 0:44:55]}  Ne5 {[%clk 0:53:59]}
19. Nc2 {[%clk 0:44:03]}  f4 {[%clk 0:34:16]} 20. Bg4 {[%clk 0:34:39]}  Nxg4 {[%clk 0:23:33]} 21. Qxg4 {[%clk 0:35:04]}  Rf5 {[%clk 0:23:54]}
22. c4 {[%clk 0:23:09]}  Bxa1 {[%clk 0:16:39]} 23. Rxa1 {[%clk 0:23:35]}  Qb6 {[%clk 0:16:54]} 24. Qe2 {[%clk 0:23:20]}  Re8 {[%clk 0:13:14]}
25. Qxe4 {[%clk 0:21:55]}  Re5 {[%clk 0:13:23]} 26. Qxf4 {[%clk 0:16:59]}  Nf5 {[%clk 0:13:18]} 27. g4 {[%clk 0:08:08]}  Qxb3 {[%clk 0:09:32]}
28. gxf5 {[%clk 0:07:45]}  Qxc2 {[%clk 0:05:49]} 29. Bxd6 {[%clk 0:07:51]}  Rxf5 {[%clk 0:02:24]} 30. Qd4 {[%clk 0:06:59]}  Qe4 {[%clk 0:00:59]}
31. Rd1 {[%clk 0:04:03]}  Qxd4 {[%clk 0:00:46]} 32. Rxd4 {[%clk 0:04:31]}  Re1+ {[%clk 0:01:06]} 33. Kg2 {[%clk 0:04:59]}  Kf7 {[%clk 0:01:29]}
34. c5 {[%clk 0:02:54]}  Rc1 {[%clk 0:01:33]} 35. a5 {[%clk 0:01:58]}  Rc2 {[%clk 0:01:24]} 36. Rb4 {[%clk 0:01:40]}  Rfxf2+ {[%clk 0:00:34]}
37. Kg3 {[%clk 0:02:01]}  Rb2 {[%clk 0:00:37]} 38. Rxb7+ {[%clk 0:02:01]}  Rxb7 {[%clk 0:00:34]} 39. Kxf2 {[%clk 0:02:25]}  Rb5 {[%clk 0:00:55]}
40. Ke3 {[%clk 0:01:37]}  Rxa5 {[%clk 0:00:34]} 41. c6 {[%clk 0:28:28]}  Ke8 {[%clk 0:24:26]} 42. Kd4 {[%clk 0:28:06]}  Ra2 {[%clk 0:13:01]}
43. Bg3 {[%clk 0:20:52]}  Rc2 {[%clk 0:11:45]} 44. Ke5 {[%clk 0:13:40]}  a5 {[%clk 0:08:04]} 45. Ke6 {[%clk 0:13:57]}  a4 {[%clk 0:01:58]}
46. c7 {[%clk 0:13:15]}  Re2+ {[%clk 0:00:35]} 47. Kd6 {[%clk 0:06:37]}  Rc2 {[%clk 0:01:00]} 48. Bf2 {[%clk 0:06:23]}  a3 {[%clk 0:00:36]}
49. Bc5 {[%clk 0:06:30]}  Rxc5 {[%clk 0:00:53]} 50. Kxc5 {[%clk 0:06:56]}  Kd7 {[%clk 0:01:18]} 51. Kb6 {[%clk 0:07:21]}  a2 {[%clk 0:01:13]}
52. Kb7 {[%clk 0:07:47]}  a1=Q {[%clk 0:01:33]} 53. c8=Q {[%clk 0:08:11]}  Ke7 {[%clk 0:01:01]} 54. Qc5 {[%clk 0:06:13]}  Ke8 {[%clk 0:00:35]}
55. Qc6+ {[%clk 0:05:26]}  Kd8 {[%clk 0:00:38]} 56. Qc7+ {[%clk 0:05:03]}  Ke8 {[%clk 0:01:03]} 57. d6 {[%clk 0:01:19]}  Qb1+ {[%clk 0:00:59]}
58. Kc8 {[%clk 0:01:39]}  Qf5+ {[%clk 0:00:49]} 59. d7 {[%clk 0:02:00]}  Ke7 {[%clk 0:00:45]} 60. Qd8+ {[%clk 0:02:19]}  Kd6 {[%clk 0:00:41]}
61. Qb6+ {[%clk 0:02:17]}  Ke7 {[%clk 0:01:02]} 62. Qe3+ {[%clk 0:02:14]}  Kd6 {[%clk 0:01:04]} 63. Qd3+ {[%clk 0:01:41]} 1-0

[Event "2026 European Womens Championship"]
[Site "Batumi, GE"]
[Date "2026.06.03"]
[Round "9"]
[White "Vidic, Teja"]
[Black "Velikic, Adela"]
[Result "1-0"]
[Board "44"]
[TimeControl "5400+30"]
[WhiteFideId "14605511"]
[BlackFideId "913553"]
[WhiteElo "2123"]
[BlackElo "2277"]
[WhiteTitle "WIM"]
[BlackTitle "WIM"]
[WhiteClock "0:12:00"]
[BlackClock "0:00:33"]
[Variant "Standard"]

1. e4 {[%clk 1:30:58]}  c5 {[%clk 1:30:55]} 2. Nf3 {[%clk 1:31:21]}  d6 {[%clk 1:31:21]} 3. d4 {[%clk 1:31:45]}  cxd4 {[%clk 1:31:46]}
4. Qxd4 {[%clk 1:32:10]}  Nc6 {[%clk 1:31:41]} 5. Bb5 {[%clk 1:32:34]}  a6 {[%clk 1:31:56]} 6. Bxc6+ {[%clk 1:32:56]}  bxc6 {[%clk 1:32:20]}
7. O-O {[%clk 1:33:09]}  e5 {[%clk 1:31:59]} 8. Qa4 {[%clk 1:33:34]}  Qc7 {[%clk 1:31:07]} 9. c4 {[%clk 1:33:45]}  Be7 {[%clk 1:14:12]}
10. c5 {[%clk 1:34:01]}  Bg4 {[%clk 1:04:50]} 11. Nbd2 {[%clk 1:29:43]}  dxc5 {[%clk 0:51:53]} 12. h3 {[%clk 1:29:52]}  Bxf3 {[%clk 0:33:00]}
13. Nxf3 {[%clk 1:30:16]}  Bd6 {[%clk 0:32:07]} 14. Be3 {[%clk 1:14:20]}  Ne7 {[%clk 0:31:55]} 15. Rac1 {[%clk 1:12:57]}  O-O {[%clk 0:31:00]}
16. Bxc5 {[%clk 1:13:14]}  Rfb8 {[%clk 0:25:55]} 17. Qa3 {[%clk 1:04:49]}  Bxc5 {[%clk 0:25:26]} 18. Rxc5 {[%clk 1:05:10]}  f6 {[%clk 0:23:22]}
19. Rfc1 {[%clk 1:00:22]}  Qb7 {[%clk 0:20:22]} 20. R5c4 {[%clk 0:55:04]}  Ra7 {[%clk 0:17:17]} 21. b3 {[%clk 0:54:51]}  Rd8 {[%clk 0:16:58]}
22. Qc5 {[%clk 0:52:32]}  Raa8 {[%clk 0:14:37]} 23. R4c2 {[%clk 0:40:07]}  a5 {[%clk 0:12:08]} 24. Rc4 {[%clk 0:32:50]}  Qa7 {[%clk 0:10:27]}
25. Qa3 {[%clk 0:30:29]}  Rd3 {[%clk 0:09:25]} 26. Ra4 {[%clk 0:28:25]}  Ng6 {[%clk 0:01:51]} 27. Rc5 {[%clk 0:23:34]}  Rad8 {[%clk 0:00:42]}
28. Raxa5 {[%clk 0:22:45]}  Qd7 {[%clk 0:00:34]} 29. Ra8 {[%clk 0:22:57]}  h6 {[%clk 0:00:35]} 30. Rxd8+ {[%clk 0:20:02]}  Qxd8 {[%clk 0:01:03]}
31. Rxc6 {[%clk 0:20:26]}  Kh7 {[%clk 0:00:51]} 32. Qa7 {[%clk 0:17:36]}  Rd7 {[%clk 0:00:35]} 33. Qc5 {[%clk 0:16:10]}  Rd1+ {[%clk 0:00:36]}
34. Kh2 {[%clk 0:16:37]}  Qd3 {[%clk 0:00:34]} 35. Qc4 {[%clk 0:15:14]}  Qb1 {[%clk 0:00:50]} 36. Rc8 {[%clk 0:15:39]}  h5 {[%clk 0:00:34]}
37. Qg8+ {[%clk 0:10:47]}  Kh6 {[%clk 0:00:59]} 38. Rc7 {[%clk 0:11:14]}  Rh1+ {[%clk 0:00:37]} 39. Kg3 {[%clk 0:11:42]}  h4+ {[%clk 0:00:32]}
40. Nxh4 {[%clk 0:12:06]}  Kg5 {[%clk 0:00:33]} 41. Nf3+ {[%clk 0:12:00]} 1-0